Cogmind - Beta 15 @@@ ROGUE MODE // 2025.09.07 @ 14:31:08 Player: konomiyu Result: Destroyed by G-34 Mercenary with Small Laser Performance ------------- Evolutions (0) 0 Regions Visited (1) 200 Robots Destroyed (22) 110 Value Destroyed (615) 615 Prototype IDs (0) 0 Alien Tech Used (0) 0 Bonus (0) 0 TOTAL SCORE: 925 Bonus ------- None Cogmind --------- Core Integrity 0/250 Matter 275/300 Energy 6/100 System Corruption 2% Temperature Cool (6) Movement Rolling (80) Location -10/Materials Parts ------- > --- POWER (1) -------- (None) > --- PROPULSION (2) --- Wheel Wheel > --- UTILITY (2) ------ Cooling System Signal Interpreter > --- WEAPON (2) ------- EM Pulse Gun EM Pulse Gun > --- INVENTORY (5) ---- Light Nuclear Core Structural Scanner Targeting Computer Medium Armor Plating Particle Gun Peak State ------------ > --- POWER ------------ Light Ion Engine > --- PROPULSION ------- Wheel Wheel > --- UTILITY ---------- Improved Heat Sink Signal Interpreter > --- WEAPON ----------- EM Pulse Gun Light Assault Rifle > --- INVENTORY -------- Light Ion Engine Structural Scanner [Rating: 9] Favorites ----------- Power Light Ion Engine Engine Light Ion Engine Propulsion Wheel Wheel Wheel Utility Signal Interpreter Device Cooling System Processor Signal Interpreter Protection Light Armor Plating Weapon EM Pulse Gun Energy Gun EM Pulse Gun Ballistic Gun Light Assault Rifle Build | -11 -10 ------- Run | Yrd Mat Slots Evolved . | . . Power . | . . Propulsion . | . . Utility . | . . Weapon . | . . Parts Attached 22 | 5 17 Power 3 | 1 2 Engine 3 | 1 2 Core . | . . Reactor . | . . Propulsion 5 | 2 3 Treads . | . . Leg . | . . Wheel 5 | 2 3 Hover . | . . Flight . | . . Utility 5 | . 5 Device 3 | . 3 Storage . | . . Processor 1 | . 1 Hackware . | . . Protection 1 | . 1 Artifact . | . . Weapon 9 | 2 7 Energy Gun 8 | 1 7 Energy Cannon . | . . Ballistic Gun 1 | 1 . Ballistic Cannon . | . . Launcher . | . . Special Weapon . | . . Impact Weapon . | . . Slashing Weapon . | . . Piercing Weapon . | . . Special Melee Weapon . | . . Unidentified Prototypes . | . . Parts Lost 8 | . 8 Power 2 | . 2 Propulsion 3 | . 3 Utility 1 | . 1 Weapon 2 | . 2 Highest Loss Streak 4 | . 4 To Critical Strikes . | . . Average Backups 3 | . 3 Power 1 | . 1 Propulsion . | . . Utility 1 | . 1 Weapon . | . . Tool/Special . | . . Unused Backups 4 | . 4 Power 1 | . 1 Propulsion 1 | . 1 Utility 2 | . 2 Weapon . | . . Tool/Special . | . . Average Slot Usage (%) 88 | . 88 Engine 13 | . 13 Wheel 22 | . 22 Device 11 | . 11 Processor 12 | . 12 Protection 2 | . 2 Energy Gun 20 | . 20 Ballistic Gun 4 | . 4 Peak Build Rating 9 | 5 9 Average Rating 7 | 3 7 On Entrance 2 | . 5 Naked Turns . | . . Heaviest Build 10 | 6 10 Greatest Support 26 | 26 26 Greatest Overweight (x) 2 | . 2 Average Overweight (x) . | . . Largest Inventory Capacity 5 | 5 5 Average Capacity 5 | 5 5 Most Carried 5 | 1 5 Average Carried 3 | . 3 Final Capacity 5 | 5 5 Final Carried 5 | 1 5 Class Distribution -------------------- 57% | Mutant 42% | Scavenger-Mutant Dominant Class ---------------- Mutant | -10/Materials Resources | -11 -10 ----------- Run | Yrd Mat Matter Collected 421 | 196 225 Remotely . | . . Salvage Created 748 | . 748 Parts 50 | . 50 Haulers Intercepted . | . . Recyclers Shooed . | . . Parts Field Recycled . | . . Retrieved Matter . | . . Parts Self-Destructed . | . . Prevented . | . . Kills | -11 -10 ------- Run | Yrd Mat Combat Hostiles Destroyed 16 | . 16 Guns 13 | . 13 AOE 3 | . 3 Classes Destroyed 6 | . 6 Worker 1 | . 1 Builder 2 | . 2 Tunneler 1 | . 1 Watcher 2 | . 2 Swarmer 2 | . 2 Grunt 14 | . 14 Best Kill Streak 4 | . 4 Combat Bots Only 4 | . 4 Max Kills in Single Turn 2 | . 2 Gunslinging . | . . Exploded 1 | . 1 Melee . | . . Uniques/NPCs Destroyed . | . . Combat | -11 -10 -------- Run | Yrd Mat Hostile Shots Fired 107 | . 107 Missed 28 | . 28 Hits 79 | . 79 Projectile 79 | . 79 Critical Strikes 2 | . 2 Damage Taken 1009 | . 1009 Core 254 | . 254 Absorbed by Shields . | . . Core Remaining (%) 100 | 100 . Volleys Fired 84 | . 84 Largest 2 | . 2 Hottest 105 | . 105 Shots Fired 142 | . 142 Gun 142 | . 142 Cannon . | . . Launcher . | . . Special . | . . Kinetic 26 | . 26 Thermal 61 | . 61 Explosive . | . . Electromagnetic 55 | . 55 Robot Hit Streak 14 | . 14 Robot Miss Streak 4 | . 4 Penetration Max . | . . Secondary Targets 2 | . 2 Max Gunslinging Chain 1 | . 1 Shots Hit Robots 83 | . 83 Core Hits 36 | . 36 Critical Kills . | . . Critical Parts Destroyed . | . . Critical Strikes 2 | . 2 Burn 1 | . 1 Corrupt 1 | . 1 Melee Attacks . | . . Impact . | . . Slashing . | . . Piercing . | . . Sneak Attacks . | . . Combat Hostiles . | . . Follow-up Attacks . | . . Damage Inflicted 1377 | . 1377 Guns 1129 | . 1129 Cannons . | . . Explosions 248 | . 248 Melee . | . . Ramming . | . . Kinetic 105 | . 105 Thermal 732 | . 732 Explosive . | . . Electromagnetic 540 | . 540 Impact . | . . Slashing . | . . Piercing . | . . Highest Corruption 2 | . 2 Average Corruption 2 | . 2 Corruption Purged . | . . Corruption Blocked . | . . Effects 3 | . 3 Heat Flow Errors 1 | . 1 Energy Discharges 1 | . 1 Misfires 1 | . 1 Overload Shots . | . . Overflow Damage . | . . Projectiles . | . . Explosions . | . . Melee . | . . Knockbacks . | . . Impact . | . . Kinetic . | . . Secondary . | . . Self-Inflicted Damage 55 | . 55 Shots 2 | . 2 Rammed . | . . Targets Rammed . | . . Kicked . | . . Crushed . | . . Highest Temperature 229 | . 229 Average Temperature 50 | . 50 Received Heat Transfer 558 | . 558 Siege Activations . | . . Martial Activations . | . . Shielding Activations . | . . Robots Disrupted . | . . Combat Hostiles . | . . Robots Corrupted . | . . Combat Hostiles . | . . Parts Fried 1 | . 1 Impact Corruptions . | . . Robots Melted . | . . Combat Hostiles . | . . Parts Melted 3 | . 3 Heat Transferred 1461 | . 1461 Parts Sabotaged . | . . Parts Stolen . | . . Parts Stripped . | . . Power Chain Reactions 3 | . 3 Alert | -11 -10 ------- Run | Yrd Mat Maximum Alert Level . | . . Low Security (%) 100 | 100 100 Level 1 . | . . Level 2 . | . . Level 3 . | . . Level 4 . | . . Level 5 . | . . High Security . | . . Max Security . | . . Peak Influence 156 | . 156 Initial . | . . Average 83 | . 88 Influence Increases 576 | . 576 Destroy 0b10 Robot/C 320 | . 320 Destroy 0b10 Robot/NC 30 | . 30 Destroy Leader 84 | . 84 Successful Hack 35 | . 35 Disable Machine 45 | . 45 Destroy Structure 17 | . 17 Lose Combat Pursuer 45 | . 45 Influence Decreases 436 | . 436 Time Decay 356 | . 356 Lost Part 80 | . 80 Squads Dispatched 5 | . 5 Investigation 3 | . 3 Extermination . | . . Reinforcement 2 | . 2 Assault . | . . Garrison . | . . Intercept . | . . Searches Triggered . | . . Construction Impeded . | . . Haulers Reinforced . | . . Active Scanning Responses . | . . Cargo Convoy Interrupts . | . . Stealth | -11 -10 --------- Run | Yrd Mat Distress Signals 1 | . 1 Communications Jammed . | . . Distress Signals . | . . Times Spotted 33 | . 33 Peak Tracking Total 7 | . 7 Tactical Retreats 3 | . 3 Traps | -11 -10 ------- Run | Yrd Mat Traps Triggered 1 | . 1 Indirectly . | . . Trap Hack Attempts . | . . Triggered . | . . Disarmed . | . . Reprogrammed . | . . Reused . | . . Traps Extracted . | . . Installed . | . . Triggered . | . . Machines | -11 -10 ---------- Run | Yrd Mat Machines Disabled 4 | . 4 Max in Single Turn 1 | . 1 Machines Repaired . | . . Machines Dismantled . | . . Machines Sabotaged . | . . Overloaded Fab Kills . | . . Hacking | -11 -10 --------- Run | Yrd Mat Machines Accessed 7 | . 7 Terminals 5 | . 5 Fabricators . | . . Repair Stations 1 | . 1 Recycling Units 1 | . 1 Scanalyzers . | . . Garrison Access . | . . Total Hacks 24 | . 24 Successful 7 | . 7 Failed 16 | . 16 Catastrophic 4 | . 4 Database Lockouts 1 | . 1 Manual 15 | . 15 Terminals 17 | . 17 Fabricators . | . . Repair Stations 3 | . 3 Recycling Units 4 | . 4 Scanalyzers . | . . Garrison Access . | . . Terminal Hacks 4 | . 4 Robot Analysis 1 | . 1 Branch Access Points 1 | . 1 Recall Investigation 1 | . 1 Recall Reinforcements 1 | . 1 Fabricator Hacks . | . . Repair Station Hacks 1 | . 1 Scan Component 1 | . 1 Recycling Unit Hacks 2 | . 2 Report Inventory 1 | . 1 Retrieve Components 1 | . 1 Scanalyzer . | . . Garrison Access Hacks . | . . Unauthorized Hacks . | . . Terminals . | . . Fabricators . | . . Repair Stations . | . . Recycling Units . | . . Scanalyzers . | . . Garrison Access . | . . Data Cores Recovered . | . . Used . | . . Hacking Detections 7 | . 7 Full Trace Events 7 | . 7 Feedback Events . | . . Feedback Blocked . | . . Robot Schematics Acquired . | . . Robots Built . | . . Authchips . | . . Time . | . . Total Robot Build Rating . | . . Part Schematics Acquired . | . . Parts Built . | . . Authchips . | . . Time . | . . Total Part Build Rating . | . . Parts Repaired . | . . Time . | . . Parts Recycled . | . . Recycled Matter . | . . Retrieved Matter . | . . Retrieved Components 10 | . 10 Parts Scanalyzed . | . . Part Schematics Acquired . | . . Parts Damaged . | . . Bothacking | -11 -10 ------------ Run | Yrd Mat Used RIF Installer . | . . Robots Hacked . | . . Non-combat . | . . Combat . | . . Robot Hacks Applied . | . . Relay Couplers Released . | . . Fabnet Peak Effective % . | . . Robots Rewired . | . . Allies Hacked . | . . Hacks Repelled . | . . Allies | -11 -10 -------- Run | Yrd Mat Total Allies . | . . Largest Group . | . . Highest-Rated Group . | . . Highest-Rated Ally . | . . Total Orders . | . . Ally Attacks . | . . Total Damage . | . . Kills . | . . Allies Corrupted . | . . Allies Melted . | . . Intel | -11 -10 ------- Run | Yrd Mat Active Infowar (turns) 54 | . 54 Structural 54 | . 54 Robot Analysis Total 1 | . 1 Derelict Logs Recovered . | . . Drone Launches . | . . Drone Recoveries . | . . Exploration | -11 -10 ------------- Run | Yrd Mat Turns Passed 974 | 60 914 Spaces Moved 779 | 57 722 Core 20 | 6 14 Treads . | . . Legs . | . . Wheels 759 | 51 708 Hover . | . . Flight . | . . Fastest Speed 50 | 50 50 Average Speed 82 | 86 81 Slowest Speed 150 | 100 150 Overloaded Moves . | . . Propulsion Burnouts . | . . Robots Hopped . | . . Potential Cave-ins . | . . Cave-ins Triggered . | . . Exploration Rate (%) 47 | 3 92 Regions Visited 1 Branch Regions . Pre-discovered Areas . | . . Known Exits Taken . | . . Unknown Exits Taken 1 | 1 . Scrap Searched . | . . Spaces Dug . | . . Terrain Destroyed 15 | . 15 Melee . | . . Projectile . | . . AOE 15 | . 15 Terrain Rammed . | . . Walls Destroyed . | . . Machines Disabled . | . . Actions | -11 -10 --------- Run | Yrd Mat Total 975 | 67 908 Wait 60 | . 60 Move 778 | 56 722 Hop . | . . Pick Up 23 | 6 17 Fast Attach . | . . Attach 14 | 5 9 Detach . | . . Swap 10 | . 10 Drop 6 | . 6 Fire 84 | . 84 Melee . | . . Ram . | . . Kick . | . . Crush . | . . Escape Stasis . | . . Rewire . | . . Trap . | . . Miscellaneous . | . . Route ------- -11/Scrapyard -10/Materials (discovered 5 exits: *Mat x2 / *Min x2 / *Sub) History --------- Turn | Location | Event 17 | -11/Scrapyard | Discovered new exit (range 15) 61 | -11/Scrapyard | Entered Materials 65 | -10/Materials | Central database locked down 121 | -10/Materials | Identified exit to Mines 241 | -10/Materials | Discovered new exit (range 6) 307 | -10/Materials | Build established: Mutant 453 | -10/Materials | Core integrity fell below 50% 470 | -10/Materials | Lost 4 parts (1p1n2w) 551 | -10/Materials | Discovered new exit (range 16) 569 | -10/Materials | Identified exit to Materials 705 | -10/Materials | Discovered exit to Materials (range 16) 785 | -10/Materials | Identified exit to Subcaves 808 | -10/Materials | Build established: Scavenger-Mutant 901 | -10/Materials | Core integrity fell below 20% 975 | -10/Materials | Destroyed by G-34 Mercenary with Small Laser Last Messages --------------- 00866_ Destroyed Aluminum Leg. 00867_ K-01 Serf collects debris. 00869_ Sml. Laser melted. 00869_ G-34 Mercenary destroyed. 00871_ K-01 Serf collects debris. 00879_ Acquired 10 matter. 00888_ G-34 Mercenary destroyed. 00900_ Heat Sink melted. 00900_ G-34 Mercenary destroyed. 00914_ Acquired EM Pulse Gun. 00920_ U-05 Engineer lays Concrete. 00930_ Destroyed Lgt. Ion Engine. 00930_ W-16 Scout suffers critical hit (Burn). 00946_ Dropped EM Pulse Gun. 00947_ Acquired EM Pulse Gun. 00958_ Heat Sink fried. 00958_ G-34 Mercenary destroyed. 00958_ Switching to secondary target: G-34 Mercenary. 00961_ Lgt. Ion Engine destroyed. Map ----- +----------------------------------------------------+ | | | | | | | | | | | | | | | | | | | | | | | | | | | ?????????????????????????????????????????????????? | | ?????????????????????????????????????????????????? | | ?????????????????????????????????????????????????? | | ?????????????????????????????????????????????????? | | ?????????????????????????????????????????????????? | | ?????????????????????????????????????????????????? | | ?????????????????????????????????????????????????? | | ?????????????????????????????????????????????????? | | ?????????????????????????????????????????????????? | | ?????????????##############??????????????????????? | | ?????????????? + #??????????????????????? | | ??????????????????# #??????????????????????? | | ??????????????????# @#??????????????????????? | | ??????????????????# #??????????????????????? | | ??????????????????# #??????????????????????? | | ###???????????????# #??????????????????????? | | #???????????????# #??????????????????????? | | #???????????????# #??????????????????????? | | #????#######????# = #????????????########### | | " #????# #????# =% #????????????# # | | #????# #????# #????????????# T # | | ######## ##########g###????????????# # | | / ! ! # ##+########### # | | ## # #*""" """ # | | ## ! [ # #%""" """ # | | ## # % =""" """ %+%""" """ # | | ## "T" # """ T" #[ # | | !% =## """ # """ """ %########### | | %#######+# [ | | [ % | | | | | | #######+### ##### %* | | #"""""#+###??# # ## #######+######### | | #### ??????# + # "# #### | | #??# ""?????# # # ""# + | | #??# ""?????# # # % !!# #### | +----------------------------------------------------+ Best States ------------- Heat Dissipation 47 Energy Generation 10 Energy Capacity 125 Matter Stores 300 Matter Capacity 300 Sight Range 16 Terrain Scan Density 10 Armor Coverage 150 Evasion (%) 50 Item Schematics ----------------- None Robot Schematics ------------------ None Fabricated ------------ Nothing Repaired ---------- Nothing Alien Tech Used ----------------- None Achievements -------------- None Challenges ------------ None Game ------ Seed SingularityParticleDiverter Manual? 0 Play Time 00:17:00 Cumulative 6.2 hours Start 2025.09.07 @ 14:15:18 End 2025.09.07 @ 14:31:08 Sessions 1 Manual Loads 0 Difficulty Rogue Special Mode None Game No. 7 Rogue 7 Adventurer 0 Explorer 0 Win Type - Total 0 Types 0/0/0/0/0/0/0/0/0/0 Lore% 8 Gallery% 9 Achievement% 13 Wizard Run 0 Options --------- Layout 1 ASCII 0 Keyboard 0 Movement Mouse Keybinds 0 Fullscreen 2 Font 24/Smallcaps Map View 50x35 Zoom Use 0% Tactical HUD 1 Map Filters NONE Filters NONE Steam 1 RUN: 9c60722c-3f23-4be2-8c59-47e142640a02